bitfinex/quotes_BTCUSD_20240727
["timestamp","ask_amount","ask_price","bid_price","bid_amount"]
[1722121685360,0.05,68547.0,68546.0,0.359128]
[1722121685796,0.05,68547.0,68546.0,0.350128]
[1722121686005,0.05,68547.0,68546.0,0.590547]
[1722121686573,0.05,68547.0,68546.0,0.73380657]
[1722121686778,0.05,68547.0,68546.0,0.74280657]
[1722121687746,0.07289069,68547.0,68546.0,0.74280657]
[1722121688693,0.07289069,68547.0,68546.0,0.73380657]
[1722121688889,0.07289069,68547.0,68546.0,0.74180657]
[1722121689091,0.07289069,68547.0,68546.0,0.97522557]
[1722121689362,0.07289069,68547.0,68546.0,0.99022557]
[1722121690143,0.07289069,68547.0,68546.0,1.07774557]
[1722121690318,0.03111038,68547.0,68546.0,1.42216457]
[1722121690521,0.03111038,68547.0,68546.0,1.57566457]
[1722121690904,0.00821969,68547.0,68546.0,1.57566457]
[1722121691689,0.00321969,68547.0,68546.0,1.56466457]
[1722121691852,0.02610893,68547.0,68546.0,1.56466457]
[1722121692050,0.02610893,68547.0,68546.0,1.57866457]
[1722121692256,0.02610893,68547.0,68546.0,1.19174557]
[1722121693341,0.02610893,68547.0,68546.0,1.34554557]
[1722121693544,0.02610893,68547.0,68546.0,1.19174557]
[1722121695988,0.02610893,68547.0,68546.0,0.230709]
[1722121696192,0.16440893,68547.0,68546.0,0.014]
[1722121696326,0.14151969,68547.0,68546.0,0.014]
[1722121697742,0.14151969,68547.0,68545.0,0.00927216]
[1722121697957,0.14151969,68547.0,68544.0,0.216713]
[1722121698154,0.14151969,68547.0,68546.0,0.004]
[1722121698567,0.14151969,68547.0,68544.0,0.216713]
[1722121698770,0.08001969,68547.0,68546.0,0.116709]
[1722121698955,0.08001969,68547.0,68546.0,0.350128]
[1722121698956,0.00321969,68547.0,68546.0,0.350128]
[1722121699642,0.02611065,68547.0,68546.0,0.350128]
[1722121699967,0.00321969,68547.0,68546.0,0.116709]
[1722121700477,0.00321969,68547.0,68546.0,0.350128]
[1722121701653,0.00321969,68547.0,68546.0,0.356128]
[1722121702304,0.00321969,68547.0,68546.0,0.350128]
[1722121702652,0.00321969,68547.0,68546.0,0.590547]
[1722121702868,0.00321969,68547.0,68546.0,0.357128]
[1722121703070,0.00321969,68547.0,68546.0,0.350128]
[1722121703241,0.02511065,68547.0,68546.0,0.350128]
[1722121703448,0.02511065,68547.0,68546.0,0.359128]
[1722121704085,0.02511065,68547.0,68546.0,0.592547]
[1722121704265,0.02511065,68547.0,68546.0,0.359128]
[1722121704488,0.00221969,68547.0,68546.0,0.359128]
[1722121704826,0.00221969,68547.0,68546.0,0.592547]
[1722121705156,0.00221969,68547.0,68546.0,0.74280657]
[1722121705448,0.00121969,68547.0,68546.0,0.74280657]
[1722121705621,0.00121969,68547.0,68546.0,0.73380657]
[1722121705950,0.00121969,68547.0,68546.0,0.74280657]
[1722121706299,0.00121969,68547.0,68546.0,0.73380657]
[1722121706785,0.00121969,68547.0,68546.0,0.74380657]
[1722121707082,0.15276496,68547.0,68546.0,0.74380657]
[1722121707431,0.00121969,68547.0,68546.0,0.74380657]
[1722121707810,0.00121969,68547.0,68546.0,1.00022557]
[1722121707811,0.02411033,68547.0,68546.0,1.00022557]
[1722121708139,0.00121969,68547.0,68546.0,1.00022557]
[1722121709171,0.00121969,68547.0,68546.0,0.99022557]
[1722121709386,0.00121969,68547.0,68546.0,1.00422557]
[1722121710132,0.00121969,68547.0,68546.0,1.09174557]
[1722121710400,0.00121969,68547.0,68546.0,1.19266957]
[1722121710597,0.00205969,68547.0,68546.0,1.19266957]
[1722121711448,0.02494801,68547.0,68546.0,1.19266957]
[1722121711702,0.00205969,68547.0,68546.0,1.19266957]
[1722121711958,0.02494902,68547.0,68546.0,1.19266957]
[1722121712153,0.04322678,68564.0,68549.0,0.001]
[1722121712357,0.0768,68567.0,68562.0,0.583412]
[1722121712358,0.27271759,68563.0,68562.0,0.583412]
[1722121712605,0.15150973,68563.0,68562.0,0.583412]
[1722121712803,0.04322678,68566.0,68562.0,0.15025957]
[1722121713010,0.04322678,68566.0,68557.0,0.08752]
[1722121713011,0.27270594,68565.0,68564.0,0.350037]
[1722121713230,0.31593272,68565.0,68564.0,0.73365457]
[1722121713569,0.27270594,68565.0,68564.0,0.116679]
[1722121713796,0.33755974,68565.0,68564.0,0.233358]
[1722121714014,0.33755974,68565.0,68564.0,0.350037]
[1722121714249,0.2727159,68565.0,68564.0,0.350037]
[1722121714715,0.27271691,68565.0,68564.0,0.350037]
[1722121714858,0.31595368,68565.0,68564.0,0.350037]
[1722121715064,0.27371691,68565.0,68560.0,0.233369]
[1722121715273,0.07512979,68566.0,68563.0,0.350043]
[1722121715274,0.27271691,68564.0,68563.0,0.350043]
[1722121715938,0.27271691,68564.0,68563.0,0.583405]
[1722121716201,0.31595007,68564.0,68563.0,0.583405]
[1722121716405,0.27271691,68564.0,68563.0,0.583405]
[1722121717234,0.15150329,68564.0,68563.0,0.583405]
[1722121717403,0.12120989,68564.0,68563.0,0.583405]
[1722121717785,0.04323019,68566.0,68564.0,0.233358]
[1722121717935,0.04323019,68566.0,68565.0,0.233355]
[1722121718144,0.19474256,68566.0,68565.0,0.233355]
[1722121718365,0.31495245,68566.0,68565.0,0.233355]
[1722121719044,0.31495245,68566.0,68565.0,0.350032]
[1722121719450,0.27272226,68566.0,68565.0,0.350032]
[1722121719667,0.27272226,68566.0,68565.0,0.583387]
[1722121719833,0.29560748,68566.0,68565.0,0.583387]
[1722121720437,0.29560464,68566.0,68565.0,0.583387]
[1722121720817,0.29460445,68566.0,68565.0,0.583387]
[1722121721005,0.27171923,68566.0,68565.0,0.583387]
[1722121721662,0.15051237,68566.0,68565.0,0.583387]
[1722121721910,0.33560516,68566.0,68565.0,0.583387]
[1722121722510,0.59438476,68566.0,68565.0,0.583387]
[1722121722714,0.59438476,68566.0,68565.0,0.350032]
[1722121722910,0.59438476,68566.0,68564.0,0.233358]
[1722121722911,0.59538476,68566.0,68564.0,0.233358]
[1722121723141,0.12120912,68565.0,68564.0,0.350037]
[1722121723286,0.001,68566.0,68565.0,0.350032]
[1722121723491,0.12220988,68566.0,68565.0,0.350032]
[1722121724290,0.14509556,68566.0,68565.0,0.350032]
[1722121724498,0.14509556,68566.0,68565.0,0.583387]
[1722121724499,0.14409556,68566.0,68565.0,0.583387]
[1722121724764,0.46776087,68566.0,68565.0,0.583387]
[1722121724898,0.44487519,68566.0,68565.0,0.583387]
[1722121725519,0.44087519,68566.0,68565.0,0.350032]
[1722121725742,0.0768,68567.0,68566.0,0.350026]
[1722121725963,0.19800988,68567.0,68566.0,0.350026]
[1722121726662,0.0768,68567.0,68566.0,0.350026]
[1722121726862,0.52167519,68567.0,68566.0,0.350026]
[1722121728303,0.54456078,68567.0,68566.0,0.350026]
[1722121728506,0.52167519,68567.0,68566.0,0.116675]
[1722121728703,0.52267519,68567.0,68566.0,0.116675]
[1722121728903,0.52267519,68567.0,68563.0,0.24231288]
[1722121728904,0.001,68566.0,68565.0,0.116677]
[1722121729113,0.60663677,68566.0,68563.0,0.00895188]
[1722121729458,0.001,68558.0,68552.0,0.1]
[1722121729588,0.12251495,68553.0,68552.0,0.1]
[1722121729787,0.61076654,68553.0,68552.0,0.1]
[1722121729992,0.61076654,68553.0,68552.0,0.216699]
[1722121730502,0.52413664,68553.0,68552.0,0.216699]
[1722121730670,0.52416185,68553.0,68552.0,0.1]
[1722121731148,0.61079077,68553.0,68552.0,0.1]
[1722121731348,0.52416185,68553.0,68552.0,0.1]
[1722121731550,0.61178816,68553.0,68551.0,0.48090204]
[1722121731753,0.44496185,68552.0,68551.0,0.48090204]
[1722121731963,0.44496185,68552.0,68551.0,0.58090204]
[1722121732139,0.53158816,68552.0,68551.0,0.58090204]
[1722121732345,0.53258816,68552.0,68551.0,0.58090204]
[1722121732923,0.53258816,68552.0,68551.0,0.59190204]
[1722121732924,0.12123567,68552.0,68551.0,0.59190204]
[1722121733140,0.44496986,68552.0,68551.0,0.59190204]
[1722121733308,0.0792,68553.0,68551.0,0.70860304]
[1722121733450,0.0792,68553.0,68551.0,0.69760304]
[1722121733451,0.12123414,68552.0,68551.0,0.69760304]
[1722121733651,0.44496423,68552.0,68551.0,0.69760304]
[1722121734059,0.44496423,68552.0,68551.0,0.58090204]
[1722121734295,0.44596423,68552.0,68551.0,0.58090204]
[1722121734499,0.44496423,68552.0,68551.0,0.58090204]
[1722121735022,0.44496423,68552.0,68551.0,0.22980304]
[1722121735433,0.44496423,68552.0,68551.0,0.10910204]
[1722121735784,0.44496423,68552.0,68551.0,0.11510204]
[1722121735995,0.02288899,68552.0,68551.0,0.11510204]
[1722121736335,0.44496532,68552.0,68551.0,0.11510204]
[1722121736483,0.44496532,68552.0,68551.0,0.23180304]
[1722121736682,0.44496532,68552.0,68551.0,0.11510204]
[1722121737345,0.44496532,68552.0,68551.0,0.23180304]
[1722121737815,0.44496532,68552.0,68551.0,0.11510204]
[1722121737939,0.44496532,68552.0,68551.0,0.01510204]
[1722121738339,0.44496532,68552.0,68551.0,0.13180304]
[1722121738539,0.44496532,68552.0,68551.0,0.23180304]
[1722121738741,0.44496532,68552.0,68551.0,0.11510204]
[1722121739203,0.0792,68553.0,68551.0,0.11510204]
[1722121739403,0.44496537,68552.0,68551.0,0.11510204]
[1722121739566,0.46785432,68552.0,68551.0,0.11510204]
[1722121740174,0.46785432,68552.0,68551.0,0.23180304]
[1722121740589,0.44496537,68552.0,68551.0,0.23180304]
[1722121740899,0.44496537,68552.0,68551.0,0.46520504]
[1722121741090,0.44496537,68552.0,68551.0,0.45920504]
[1722121741448,0.44496537,68552.0,68551.0,0.10910204]
[1722121741618,0.44596463,68552.0,68551.0,0.01410204]
[1722121741856,0.64203138,68552.0,68551.0,0.01410204]
[1722121742028,0.33989508,68552.0,68551.0,0.00910204]
[1722121742415,0.001,68547.0,68545.0,0.21671]
[1722121742594,0.47630748,68547.0,68546.0,0.147633]
[1722121742797,0.59755147,68547.0,68546.0,0.147633]
[1722121743219,0.59755147,68547.0,68546.0,0.030924]
[1722121743625,0.59755147,68547.0,68546.0,0.03990374]
[1722121743626,0.27379508,68547.0,68546.0,0.03990374]
[1722121743803,0.40369806,68547.0,68546.0,0.03990374]
[1722121744022,0.0828,68543.0,68539.0,0.116721]
[1722121744221,0.001,68540.0,68538.0,0.233447]
[1722121744546,0.001,68540.0,68539.0,0.216721]
[1722121744788,0.23815837,68540.0,68539.0,0.450164]
[1722121744905,0.15156896,68540.0,68539.0,0.450164]
[1722121745103,0.15156896,68541.0,68539.0,0.216721]
[1722121745308,0.15256896,68540.0,68539.0,0.216721]
[1722121745716,0.47636332,68540.0,68539.0,0.228721]
[1722121745918,0.47636332,68540.0,68539.0,0.112]
[1722121746138,0.47635219,68540.0,68539.0,0.112]
[1722121746344,0.15156799,68540.0,68539.0,0.228721]
[1722121746741,0.06493432,68541.0,68540.0,0.11672]
[1722121746952,0.15157012,68541.0,68540.0,0.11672]
[1722121747137,0.06493401,68541.0,68540.0,0.11672]
[1722121747374,0.06593401,68542.0,68540.0,0.21672]
[1722121747591,0.001,68542.0,68541.0,0.1]
[1722121747982,0.15256735,68542.0,68541.0,0.1]
[1722121748164,0.47635288,68542.0,68541.0,0.1]
[1722121748365,0.17545987,68542.0,68541.0,0.1]
[1722121748780,0.15156735,68542.0,68541.0,0.225718]
[1722121748937,0.06493005,68543.0,68542.0,0.116716]
[1722121749141,0.0828,68549.0,68544.0,0.116713]
[1722121749142,0.06493005,68545.0,68544.0,0.116713]
[1722121749497,0.06493005,68545.0,68542.0,0.1]
[1722121749498,0.06493005,68546.0,68545.0,0.116711]
[1722121749906,0.06493005,68546.0,68545.0,0.350134]
[1722121750105,0.06493005,68547.0,68546.0,0.116709]
[1722121750470,0.06493005,68548.0,68546.0,0.116709]
[1722121750673,0.0828,68549.0,68546.0,0.116709]
[1722121750991,0.21646454,68548.0,68546.0,0.116709]
[1722121751192,0.06491252,68548.0,68546.0,0.116709]
[1722121751378,0.08780349,68548.0,68546.0,0.116709]
[1722121751580,0.02289097,68548.0,68547.0,0.116708]
[1722121751800,0.02289097,68548.0,68547.0,0.350124]
[1722121752048,0.02289097,68548.0,68547.0,0.58354]
[1722121752547,0.04327492,68549.0,68548.0,0.350119]
[1722121752769,0.04327492,68550.0,68549.0,0.116704]
[1722121753332,0.06491252,68551.0,68549.0,0.116704]
[1722121753539,0.1515436,68550.0,68549.0,0.116704]
[1722121753741,0.06491252,68551.0,68550.0,0.116703]
[1722121753985,0.56181781,68551.0,68550.0,0.116703]
[1722121754115,0.47526559,68551.0,68550.0,0.116703]
[1722121754312,0.68304936,68551.0,68550.0,0.116703]
[1722121754769,0.59649933,68551.0,68550.0,0.116703]
[1722121755139,0.68304482,68551.0,68550.0,0.116703]
[1722121755965,0.61938976,68551.0,68550.0,0.116703]
[1722121756202,0.61938976,68551.0,68545.0,0.233422]
[1722121756352,0.68304482,68550.0,68549.0,0.116704]
[1722121756749,0.59649933,68550.0,68549.0,0.116704]
[1722121757154,0.59651901,68550.0,68549.0,0.116704]
[1722121757357,0.68306206,68550.0,68549.0,0.116704]
[1722121757734,0.68306206,68550.0,68549.0,0.117704]
[1722121758343,0.68306206,68550.0,68549.0,0.116704]
[1722121758608,0.27277896,68550.0,68549.0,0.355113]
[1722121758722,0.27277896,68550.0,68549.0,0.121704]
[1722121758723,0.68305091,68550.0,68549.0,0.121704]
[1722121758921,0.27277896,68550.0,68547.0,0.233415]
[1722121759121,0.33768565,68549.0,68545.0,0.00916749]
[1722121759325,0.33768565,68549.0,68540.0,0.116719]
[1722121759326,0.06490669,68546.0,68540.0,0.116719]
[1722121759521,0.06490669,68546.0,68533.0,0.705263]
[1722121759522,0.001,68540.0,68533.0,0.705263]
[1722121759723,0.10806828,68538.0,68533.0,0.4718]
[1722121759949,0.10806828,68538.0,68534.0,0.1]
[1722121759950,0.27281691,68537.0,68534.0,0.1]
[1722121760222,0.27282215,68536.0,68534.0,0.1]
[1722121760398,0.04326271,68537.0,68534.0,0.1]
[1722121760399,0.27282215,68535.0,68534.0,0.1]
[1722121760635,0.15156219,68535.0,68534.0,0.1]
[1722121761045,0.0648,68538.0,68534.0,0.1]
[1722121761243,0.27282721,68537.0,68534.0,0.1]
[1722121761443,0.15157069,68536.0,68534.0,0.1]
[1722121761642,0.04326076,68539.0,68536.0,0.1397]
[1722121761846,0.04326076,68544.0,68537.0,0.25025957]
[1722121762079,0.27280311,68543.0,68537.0,0.25025957]
[1722121762290,0.04326076,68545.0,68543.0,0.116713]
[1722121762472,0.15155469,68544.0,68543.0,0.116713]
[1722121762670,0.12124381,68544.0,68543.0,0.116713]
[1722121762872,0.2727985,68544.0,68543.0,0.116713]
[1722121763016,0.15155469,68544.0,68543.0,0.116713]
[1722121763407,0.29569048,68544.0,68542.0,0.116716]
[1722121763600,0.15255469,68543.0,68542.0,0.116716]
[1722121764640,0.15255469,68543.0,68537.0,0.1]
[1722121764857,0.001,68537.0,68534.0,0.1]
[1722121765248,0.001,68536.0,68534.0,0.1]
[1722121766350,0.117727,68536.0,68533.0,0.48103768]
[1722121766550,0.33771833,68535.0,68534.0,0.007]
[1722121766851,0.68316389,68535.0,68534.0,0.007]
[1722121767053,0.59665904,68535.0,68534.0,0.007]
[1722121767297,0.6841488,68535.0,68534.0,0.007]
[1722121767508,0.68413542,68535.0,68534.0,0.007]
[1722121767888,0.68413542,68535.0,68533.0,0.48103768]
[1722121767889,0.76233542,68535.0,68533.0,0.48103768]
[1722121768089,0.66245904,68534.0,68533.0,0.48103768]
[1722121768291,0.8873201,68534.0,68533.0,0.48103768]
[1722121768475,0.77918904,68534.0,68533.0,0.48103768]
[1722121768691,0.66245904,68534.0,68533.0,0.48103768]
[1722121769271,0.54121695,68534.0,68533.0,0.48103768]
[1722121769478,0.6624937,68534.0,68533.0,0.48703768]
[1722121769685,0.21737329,68534.0,68533.0,0.48703768]
[1722121769888,0.33864937,68534.0,68533.0,0.48703768]
[1722121770137,0.66249146,68534.0,68533.0,0.48703768]
[1722121770745,0.66249146,68534.0,68533.0,0.01523768]
[1722121770956,0.77922146,68534.0,68533.0,0.01523768]
[1722121771171,0.001,68527.0,68521.0,1.3551]
[1722121771558,0.04323002,68524.0,68522.0,0.10778697]
[1722121771723,0.04422934,68525.0,68522.0,0.10778697]
[1722121772368,0.001,68523.0,68522.0,0.00778697]
[1722121772897,0.0442339,68524.0,68522.0,0.00778697]
[1722121773106,0.0442339,68524.0,68521.0,0.00911814]
[1722121773334,0.0432339,68524.0,68523.0,0.0077797]
[1722121773487,0.0432238,68524.0,68522.0,0.00778697]
[1722121773697,0.06612205,68525.0,68521.0,0.00911814]
[1722121774197,0.06612205,68525.0,68522.0,0.02078697]
[1722121774198,0.0432238,68524.0,68522.0,0.02078697]
[1722121774780,0.0432238,68525.0,68522.0,0.00778697]
[1722121775032,0.001,68525.0,68522.0,0.00778697]
[1722121775359,0.001,68526.0,68522.0,0.00778697]
[1722121775560,0.04423432,68526.0,68522.0,0.00778697]
[1722121775784,0.001,68524.0,68522.0,0.013]
[1722121775994,0.001,68524.0,68523.0,0.0077797]
[1722121777133,0.04423432,68526.0,68523.0,0.0077797]
[1722121777455,0.04523432,68526.0,68522.0,0.007]
[1722121777602,0.04323432,68525.0,68524.0,0.00777244]
[1722121777815,0.04323432,68525.0,68523.0,0.0077797]
[1722121778015,0.04323432,68525.0,68521.0,0.00911814]
[1722121778016,0.04323432,68525.0,68524.0,0.00777244]
[1722121778222,0.04423432,68526.0,68524.0,0.00777244]
[1722121778430,0.001,68526.0,68521.0,0.00911814]
[1722121778639,0.001,68526.0,68525.0,0.00776517]
[1722121778876,0.001,68524.0,68523.0,0.007]
[1722121779906,0.02389829,68525.0,68523.0,0.007]
[1722121780131,0.02389829,68525.0,68521.0,0.10911814]
[1722121780467,0.02389829,68525.0,68521.0,0.12011814]
[1722121780875,0.02389829,68525.0,68521.0,0.10911814]
[1722121781074,0.06711926,68525.0,68521.0,0.10911814]
[1722121781307,0.06811926,68525.0,68521.0,0.12111814]
[1722121781459,0.04322097,68523.0,68521.0,0.12111814]
[1722121781664,0.04322097,68523.0,68521.0,0.02111814]
[1722121781873,0.02489829,68525.0,68521.0,0.02111814]
[1722121782079,0.001,68522.0,68521.0,0.02111814]
[1722121782596,0.04421741,68522.0,68521.0,0.02111814]
[1722121783030,0.001,68519.0,68518.0,0.216757]
[1722121783252,0.001,68519.0,68478.0,0.009042]
[1722121783253,0.001,68517.0,68501.0,0.233571]
[1722121783468,0.19071489,68519.0,68502.0,0.15025957]
[1722121783469,0.001,68511.0,68502.0,0.15025957]
[1722121783673,0.04320221,68514.0,68504.0,0.233561]
[1722121783877,0.06480332,68516.0,68494.0,1.031915]
[1722121783878,0.04320221,68516.0,68514.0,0.116764]
[1722121784079,0.04420221,68517.0,68515.0,0.116762]
[1722121784205,0.04420221,68517.0,68512.0,0.233535]
[1722121784206,0.001,68517.0,68512.0,0.116767]
[1722121784411,0.001,68517.0,68510.0,0.116769]
[1722121784412,0.04520221,68517.0,68510.0,0.116769]
[1722121784615,0.04520221,68517.0,68511.0,0.1]
[1722121784813,0.04519867,68517.0,68512.0,0.116767]
[1722121785016,0.04419867,68519.0,68514.0,0.116764]
[1722121785215,0.04419867,68519.0,68513.0,0.116765]
[1722121785456,0.001,68519.0,68513.0,0.116765]
[1722121786043,0.001,68519.0,68512.0,0.233535]
[1722121786044,0.001,68519.0,68512.0,0.116767]
[1722121786249,0.04319867,68520.0,68514.0,0.116763]
[1722121786452,0.04575287,68521.0,68512.0,0.233534]
[1722121786655,0.04320515,68520.0,68513.0,0.116765]
[1722121786949,0.04320515,68520.0,68514.0,0.0078451]
[1722121787155,0.04320515,68520.0,68515.0,0.116762]
[1722121787156,0.004,68519.0,68515.0,0.116762]
[1722121787465,0.004,68519.0,68516.0,0.00783056]
[1722121787669,0.001,68517.0,68516.0,0.00783056]
[1722121787871,0.001,68517.0,68511.0,0.1]
[1722121788071,0.001,68515.0,68510.0,0.1]
[1722121788271,0.001,68515.0,68511.0,0.116769]
[1722121788478,0.04320819,68519.0,68511.0,0.116769]
[1722121788672,0.001,68515.0,68511.0,0.116769]
[1722121788880,0.001,68515.0,68509.0,0.333543]
[1722121788881,0.1475,68514.0,68509.0,0.1]
[1722121789262,0.001,68510.0,68509.0,0.1]
[1722121789679,0.001,68509.0,68508.0,0.01128053]
[1722121789891,0.001,68509.0,68507.0,0.116776]
[1722121790095,0.001,68509.0,68508.0,0.1]
[1722121791378,0.001,68509.0,68507.0,0.1]
[1722121791605,0.001,68509.0,68506.0,0.1]
[1722121791826,0.001,68509.0,68505.0,0.116778]
[1722121792026,0.001,68509.0,68506.0,0.1]
[1722121792535,0.001,68508.0,68506.0,0.1]
[1722121793004,0.001,68509.0,68506.0,0.1]
[1722121793005,0.002,68509.0,68506.0,0.1]
[1722121793201,0.001,68512.0,68505.0,0.1]
[1722121793518,0.001,68512.0,68503.0,0.233564]
[1722121793519,0.001,68509.0,68508.0,0.116773]
[1722121793718,0.001,68509.0,68508.0,0.216773]
[1722121794124,0.001,68509.0,68508.0,0.428773]
[1722121794318,0.0229022,68511.0,68508.0,0.428773]
[1722121794559,0.0229022,68511.0,68509.0,0.1]
[1722121794708,0.0229022,68511.0,68509.0,0.216772]
[1722121794910,0.0821,68514.0,68509.0,0.216772]
[1722121795109,0.15162232,68513.0,68509.0,0.216772]
[1722121795313,0.15162232,68513.0,68510.0,0.11677]
[1722121795641,0.001,68515.0,68510.0,0.11677]
[1722121795849,0.27292012,68514.0,68510.0,0.21667861]
[1722121796051,0.001,68522.0,68521.0,0.349257]
[1722121796052,0.0015542,68522.0,68521.0,0.349257]
[1722121796252,0.0015542,68522.0,68513.0,0.212]
[1722121796253,0.1212893,68522.0,68520.0,0.116754]
[1722121796446,0.1212893,68522.0,68521.0,0.116751]
[1722121796447,0.0015542,68522.0,68521.0,0.116751]
[1722121796673,0.0015542,68522.0,68520.0,0.116753]
[1722121796674,0.15316365,68522.0,68520.0,0.116753]
[1722121796952,0.27289701,68521.0,68520.0,0.116753]
[1722121797159,0.15160945,68521.0,68520.0,0.116753]
[1722121797348,0.12128759,68521.0,68520.0,0.116753]
[1722121797612,0.15160945,68521.0,68520.0,0.116753]
[1722121797802,0.12128756,68521.0,68520.0,0.116753]
[1722121797936,0.27289701,68521.0,68520.0,0.116753]
[1722121798512,0.27289701,68521.0,68511.0,0.15025957]
[1722121798513,0.001,68515.0,68511.0,0.15025957]
[1722121798720,0.15161908,68514.0,68510.0,0.01147136]
[1722121798906,0.18649842,68513.0,68510.0,0.01147136]
[1722121799111,0.15161908,68512.0,68511.0,0.116769]
[1722121799659,0.0652,68513.0,68509.0,0.11110946]
[1722121799863,0.15162124,68512.0,68509.0,0.11110946]
[1722121800062,0.15162124,68512.0,68510.0,0.006]
[1722121800567,0.15162124,68512.0,68509.0,0.12788146]
[1722121800693,0.15162124,68512.0,68509.0,0.01110946]
[1722121800892,0.15162124,68512.0,68510.0,0.11677]
[1722121801314,0.15162124,68512.0,68509.0,0.006]
[1722121801491,0.15162124,68512.0,68509.0,0.122772]
[1722121801696,0.15162124,68512.0,68509.0,0.006]
[1722121802139,0.15162124,68512.0,68510.0,0.01019077]
[1722121802140,0.15262124,68512.0,68510.0,0.01019077]
[1722121802476,0.15162124,68511.0,68510.0,0.01019077]
[1722121802691,0.15162124,68511.0,68510.0,0.12696177]
[1722121802902,0.15162124,68511.0,68510.0,0.01019077]
[1722121803082,0.15262124,68511.0,68510.0,0.01019077]
[1722121803314,0.15262124,68511.0,68510.0,0.01619077]
[1722121803849,0.15162124,68511.0,68510.0,0.01019077]
[1722121804254,0.15262124,68511.0,68510.0,0.006]
[1722121804508,0.53189422,68511.0,68510.0,0.01635413]
[1722121804704,1.32292222,68511.0,68510.0,0.006]
[1722121804994,1.74987492,68511.0,68510.0,0.006]
[1722121805195,1.74987492,68511.0,68491.0,0.002924]
[1722121805196,0.491559,68501.0,68491.0,0.002924]
[1722121805304,0.64318024,68501.0,68492.0,0.01106993]
[1722121805508,0.85496278,68501.0,68492.0,0.01106993]
[1722121805940,0.7381821,68501.0,68494.0,0.116797]
[1722121806364,0.41416345,68501.0,68494.0,0.116797]
[1722121806579,0.39113943,68501.0,68499.0,0.116789]
[1722121806753,0.39113943,68501.0,68496.0,0.233588]
[1722121806754,0.26252917,68501.0,68496.0,0.233588]
[1722121806956,0.26252917,68501.0,68499.0,0.116789]
[1722121807300,0.26252917,68501.0,68500.0,0.01053633]
[1722121807301,0.34794523,68501.0,68500.0,0.01053633]
[1722121807507,0.22662124,68501.0,68500.0,0.01053633]
[1722121807713,0.075,68501.0,68500.0,0.12732433]
[1722121807905,0.04317598,68504.0,68500.0,0.21207316]
[1722121808118,0.16136582,68508.0,68500.0,0.22253633]
[1722121808119,0.075,68508.0,68500.0,0.22253633]
[1722121808293,0.04317598,68509.0,68508.0,0.116774]
[1722121808498,0.0015542,68510.0,68508.0,0.116774]
[1722121808499,0.0015542,68510.0,68509.0,0.340317]
[1722121808877,0.0015542,68511.0,68510.0,0.350313]
[1722121809078,0.0015542,68511.0,68510.0,0.116771]
[1722121809279,0.0015542,68512.0,68511.0,0.344308]
[1722121809490,0.0015542,68513.0,68512.0,0.350302]
[1722121809836,0.0015542,68513.0,68512.0,0.59416933]
[1722121810022,0.0015542,68515.0,68514.0,0.350292]
[1722121810228,0.0015542,68515.0,68514.0,0.59413053]
[1722121810428,0.0015542,68516.0,68515.0,0.350287]
[1722121810633,0.15317373,68516.0,68515.0,0.583812]
[1722121810836,0.15161953,68516.0,68515.0,0.59011163]
[1722121811257,0.0015542,68517.0,68516.0,0.350283]
[1722121811455,0.06738641,68517.0,68516.0,0.350283]
[1722121811657,0.06583221,68517.0,68516.0,0.36057173]
[1722121811862,0.33874827,68517.0,68516.0,0.36057173]
[1722121812070,0.21645313,68517.0,68516.0,0.36057173]
[1722121812275,0.21645313,68517.0,68516.0,0.59409373]
[1722121812276,0.04321706,68517.0,68516.0,0.59409373]
[1722121812476,0.04321706,68518.0,68517.0,0.583795]
[1722121812734,0.0015542,68519.0,68518.0,0.350272]
[1722121812848,0.06482795,68519.0,68518.0,0.583787]
[1722121813046,0.15161385,68519.0,68518.0,0.36053893]
[1722121813290,0.15161385,68519.0,68518.0,0.35753893]
[1722121813291,0.33773192,68519.0,68518.0,0.35753893]
[1722121813492,0.2164418,68519.0,68518.0,0.35753893]
[1722121814101,0.2224418,68519.0,68518.0,0.35853893]
[1722121814453,0.22244255,68519.0,68518.0,0.35853893]
[1722121814656,0.24534472,68519.0,68518.0,0.35853893]
[1722121814973,0.34373541,68519.0,68518.0,0.35853893]
[1722121815216,0.22244502,68519.0,68518.0,0.35853893]
[1722121815578,0.22144502,68519.0,68518.0,0.59205393]
[1722121815895,0.22144502,68519.0,68518.0,0.35853893]
[1722121816104,0.22144502,68519.0,68518.0,0.59205393]
[1722121816105,0.0482258,68519.0,68518.0,0.59205393]
[1722121816309,0.005,68519.0,68518.0,0.59205393]
[1722121816504,0.0065542,68519.0,68518.0,0.82556893]
[1722121816912,0.0023942,68521.0,68520.0,0.58377]
[1722121817436,0.0023942,68521.0,68520.0,0.82752313]
[1722121817643,0.00084,68521.0,68520.0,0.82752313]
[1722121818055,0.02373929,68521.0,68520.0,0.82752313]
[1722121818596,0.00084,68521.0,68520.0,0.82752313]
[1722121819436,0.00084,68521.0,68520.0,0.9867827]
[1722121819918,0.0015542,68526.0,68525.0,0.817218]
[1722121820152,0.06484734,68535.0,68533.0,0.233464]
[1722121820376,0.06484414,68535.0,68534.0,0.23346]
[1722121820560,0.23395896,68537.0,68536.0,0.116726]
[1722121820780,0.0811,68537.0,68536.0,0.583632]
[1722121820957,0.0811,68537.0,68536.0,0.36024979]
[1722121821410,0.0811,68537.0,68536.0,0.59370279]
[1722121821616,0.04321676,68537.0,68536.0,0.59370279]
[1722121821798,0.04321676,68539.0,68538.0,0.116723]
[1722121822000,0.04321676,68539.0,68538.0,0.583617]
[1722121822241,0.13022321,68541.0,68539.0,0.116721]
[1722121822242,0.04321676,68540.0,68539.0,0.116721]
[1722121822440,0.04321676,68540.0,68539.0,0.583607]
[1722121822612,0.0654,68541.0,68540.0,0.34716]
[1722121822848,0.10861676,68541.0,68540.0,0.34716]
[1722121823054,0.10861676,68541.0,68540.0,0.35718721]
[1722121823255,0.0654,68541.0,68540.0,0.35718721]
[1722121823461,0.10861465,68541.0,68540.0,0.35718721]
[1722121823676,0.10861487,68541.0,68540.0,0.35718721]
[1722121823885,0.04321487,68541.0,68540.0,0.59062721]
[1722121824164,0.04321487,68541.0,68527.0,0.001]
[1722121824165,0.04321487,68541.0,68489.0,0.350418]
[1722121824166,0.116771,68510.0,68489.0,0.350418]